bitfinex/quotes_SOLUSD_20251231
["timestamp","ask_amount","ask_price","bid_price","bid_amount"]
[1767213051158,28.77878425,124.49,124.42,0.70859536]
[1767213051469,5.97377431,124.48,124.42,0.70859536]
[1767213051660,28.77878425,124.49,124.42,0.70859536]
[1767213051962,5.97377051,124.48,124.42,0.70859536]
[1767213052257,28.77878425,124.49,124.42,0.70859536]
[1767213052458,5.97492255,124.48,124.42,0.70859536]
[1767213052657,28.77878425,124.49,124.42,0.70859536]
[1767213052955,5.97492255,124.48,124.42,0.70859536]
[1767213053162,28.77878425,124.49,124.42,0.70859536]
[1767213053342,5.97846412,124.48,124.43,5.40802224]
[1767213053548,28.77878425,124.49,124.42,0.70859536]
[1767213053757,5.97846791,124.48,124.43,5.40829666]
[1767213054063,28.77878425,124.49,124.42,0.70859536]
[1767213054237,5.97965758,124.48,124.43,6.07089889]
[1767213054438,28.77878425,124.49,124.43,0.66260223]
[1767213054659,8.03406443,124.47,124.43,0.66260223]
[1767213056958,28.11750304,124.48,124.43,0.66260223]
[1767213057268,5.98610911,124.47,124.43,0.66260223]
[1767213057566,28.11750304,124.48,124.43,0.66260223]
[1767213057767,5.9898863,124.47,124.43,0.66260223]
[1767213057945,28.11750304,124.48,124.43,0.66260223]
[1767213058145,5.98988907,124.47,124.43,0.66260223]
[1767213058346,3.4936221,124.44,124.41,14.68]
[1767213058542,3.49475294,124.44,124.42,5.42299516]
[1767213058866,3.49475294,124.44,124.36,70.4812754]
[1767213058867,28.13052562,124.42,124.37,0.66260223]
[1767213059064,5.46395662,124.4,124.38,5.42411727]
[1767213059264,8.03729303,124.42,124.39,5.42411727]
[1767213059454,8.03729303,124.42,124.37,0.66260223]
[1767213059654,5.46395662,124.4,124.38,5.42325536]
[1767213059856,5.46421329,124.4,124.37,0.66260223]
[1767213060065,5.46421329,124.4,124.38,5.42356933]
[1767213060357,5.46421329,124.4,124.37,0.66260223]
[1767213060561,5.46421329,124.38,124.33,0.66260223]
[1767213060749,11.45437949,124.37,124.33,0.66260223]
[1767213061066,13.50597778,124.38,124.33,0.66260223]
[1767213061577,8.03954754,124.39,124.33,0.66260223]
[1767213061877,20.09663228,124.4,124.35,0.66260223]
[1767213061878,8.0385852,124.4,124.35,0.66260223]
[1767213062965,8.03793907,124.41,124.35,0.66260223]
[1767213063271,5.97979755,124.4,124.35,0.66260223]
[1767213063464,28.13278675,124.41,124.35,0.66260223]
[1767213063666,5.97705413,124.4,124.35,0.66260223]
[1767213063969,5.46609372,124.37,124.35,0.66260223]
[1767213064469,5.46609372,124.38,124.35,0.66260223]
[1767213064763,5.46609372,124.37,124.35,0.66260223]
[1767213067559,13.50638297,124.38,124.35,0.66260223]
[1767213068173,5.46609372,124.38,124.35,0.66260223]
[1767213068361,5.46609372,124.39,124.35,0.66260223]
[1767213069980,8.03793907,124.41,124.36,0.66260223]
[1767213070263,13.50403279,124.41,124.36,0.66260223]
[1767213070675,13.50403279,124.41,124.37,0.66260223]
[1767213071259,20.09422691,124.42,124.37,0.66260223]
[1767213071260,8.03750768,124.42,124.37,0.66260223]
[1767213071475,5.46609372,124.42,124.38,0.66260223]
[1767213071779,13.50351698,124.42,124.38,0.66260223]
[1767213072092,0.71313341,124.47,124.4,0.66260223]
[1767213072270,5.46609372,124.45,124.41,0.66260223]
[1767213072647,8.03470994,124.46,124.41,0.66260223]
[1767213072648,5.46609372,124.44,124.41,0.66260223]
[1767213073258,5.46609372,124.46,124.42,0.66260223]
[1767213073453,5.46609372,124.45,124.42,0.66260223]
[1767213075168,8.03526589,124.46,124.42,0.66260223]
[1767213075169,13.50135961,124.46,124.42,0.66260223]
[1767213076869,8.03428529,124.47,124.43,0.66260223]
[1767213077072,13.50037901,124.47,124.43,0.66260223]
[1767213077595,5.46609372,124.51,124.46,5.46609372]
[1767213077879,5.46609372,124.49,124.45,0.66260223]
[1767213078074,5.46609372,124.48,124.45,0.66260223]
[1767213078267,5.46609372,124.48,124.36,32.72425535]
[1767213078268,5.46609372,124.46,124.42,0.66260223]
[1767213078776,8.03339992,124.49,124.44,0.66260223]
[1767213078958,13.49949364,124.49,124.45,0.66260223]
[1767213079160,5.46609372,124.48,124.45,0.66260223]
[1767213079358,5.46609372,124.47,124.45,0.66260223]
[1767213079568,5.46609372,124.47,124.43,5.46609372]
[1767213079569,5.46609372,124.47,124.4,6.71262432]
[1767213079749,5.46609372,124.47,124.43,0.67944847]
[1767213079955,5.46609372,124.48,124.43,5.46609372]
[1767213080256,5.46609372,124.47,124.44,0.65851173]
[1767213080678,8.03356735,124.48,124.44,0.65851173]
[1767213080977,5.46609372,124.47,124.44,0.65851173]
[1767213081859,13.49966107,124.48,124.44,0.65851173]
[1767213082273,5.46609372,124.48,124.44,0.65851173]
[1767213082467,0.65988074,124.5,124.44,6.12460545]
[1767213082674,5.46609372,124.48,124.44,6.12460545]
[1767213082968,5.46609372,124.48,124.44,0.65851173]
[1767213083979,5.46609372,124.47,124.44,0.65851173]
[1767213087689,6.12597446,124.45,124.39,20.82460545]
[1767213087982,6.12597446,124.45,124.4,0.65851173]
[1767213087983,5.46609372,124.44,124.4,0.65851173]
[1767213088371,5.46609372,124.44,124.39,20.16609372]
[1767213088372,28.77930792,124.47,124.41,6.12460545]
[1767213088571,5.46609372,124.46,124.42,0.65851173]
[1767213090580,8.69414684,124.47,124.42,0.65851173]
[1767213090784,6.12597446,124.47,124.42,6.12460545]
[1767213090987,5.46609372,124.47,124.43,6.12460545]
[1767213095489,5.46609372,124.45,124.41,0.65851173]
[1767213095796,5.46609372,124.44,124.41,0.65851173]
[1767213096097,5.46609372,124.45,124.41,0.65851173]
[1767213096466,5.46609372,124.45,124.41,6.12460545]
[1767213096865,5.46609372,124.47,124.43,5.46609372]
[1767213097083,6.12597446,124.48,124.44,0.65851173]
[1767213099873,110.06609372,124.49,124.45,6.12460545]
[1767213100074,0.65988074,124.54,124.49,0.65851173]
[1767213100378,8.88915127,124.55,124.5,5.46609372]
[1767213100592,5.46609372,124.54,124.49,6.12460545]
[1767213101284,0.2,124.55,124.51,6.12460545]
[1767213101493,0.2,124.55,124.52,5.46609372]
[1767213101670,0.2,124.55,124.53,5.46609372]
[1767213103172,0.2,124.55,124.54,5.46609372]
[1767213103589,0.2,124.55,124.53,6.12460545]
[1767213104406,0.2,124.55,124.53,0.65851173]
[1767213104698,0.2,124.55,124.53,6.12460545]
[1767213105198,0.2,124.58,124.54,5.46609372]
[1767213105385,0.2,124.58,124.56,5.46609372]
[1767213105585,110.92597446,124.61,124.57,5.46609372]
[1767213107104,105.45988074,124.61,124.57,6.12460545]
[1767213107405,104.8,124.61,124.58,5.46609372]
[1767213107796,104.8,124.61,124.57,6.12460545]
[1767213107978,0.2,124.61,124.58,5.46609372]
[1767213108484,0.2,124.61,124.57,6.12460545]
[1767213108675,0.2,124.61,124.58,5.46609372]
[1767213108876,0.2,124.63,124.6,5.46609372]
[1767213109390,0.2,124.63,124.6,6.12460545]
[1767213109999,0.2,124.63,124.61,5.46609372]
[1767213110513,0.2,124.63,124.56,5.46609372]
[1767213110514,5.46609372,124.62,124.55,0.7033908]
[1767213110810,5.46609372,124.62,124.57,6.16948452]
[1767213110811,6.17849433,124.62,124.57,6.16948452]
[1767213111386,5.66609372,124.63,124.59,6.16948452]
[1767213111817,0.2,124.63,124.6,5.46609372]
[1767213112305,0.2,124.63,124.61,6.16948452]
[1767213112620,0.71240061,124.66,124.62,5.46609372]
[1767213112785,0.71240061,124.66,124.61,0.7033908]
[1767213112786,0.71240061,124.66,124.63,5.46609372]
[1767213113716,0.2,124.67,124.63,5.46609372]
[1767213114102,0.2,124.67,124.63,20.14609372]
[1767213114303,0.2,124.67,124.63,20.84948452]
[1767213115601,13.6874511,124.67,124.57,8.35013837]
[1767213115815,5.46609372,124.65,124.6,6.16948452]
[1767213116018,6.17849433,124.66,124.61,5.46609372]
[1767213116319,0.71240061,124.66,124.62,5.46609372]
[1767213116521,6.17849433,124.66,124.62,5.46609372]
[1767213117178,14.20037108,124.66,124.62,5.46609372]
[1767213118400,8.73427736,124.66,124.62,5.46609372]
[1767213118598,20.25293976,124.67,124.63,6.14312127]
[1767213118599,0.2,124.67,124.63,6.14312127]
[1767213118924,0.2,124.67,124.64,5.43973047]
[1767213120920,0.71240061,124.66,124.58,0.7033908]
[1767213121124,5.43973047,124.65,124.6,6.14312127]
[1767213121416,5.43973047,124.65,124.61,5.43973047]
[1767213121618,3.48262027,124.65,124.61,3.48262027]
[1767213122121,4.19502088,124.66,124.61,0.7033908]
[1767213122298,4.19502088,124.66,124.61,4.18601107]
[1767213122612,3.48262027,124.65,124.61,4.18601107]
[1767213122808,0.71240061,124.66,124.61,18.86601107]
[1767213123005,4.19502088,124.66,124.61,18.86601107]
[1767213123521,4.19502088,124.64,124.6,14.68]
[1767213123822,12.21719532,124.66,124.61,4.18601107]
[1767213124003,0.71240061,124.66,124.62,3.48262027]
[1767213124317,11.70409147,124.67,124.63,3.48262027]
[1767213124520,0.71240061,124.66,124.56,3.48262027]
[1767213124703,0.71240061,124.66,124.62,3.48262027]
[1767213124903,0.71240061,124.66,124.62,18.16262027]
[1767213125112,0.71240061,124.65,124.62,14.68]
[1767213125310,0.71240061,124.65,124.62,18.16262027]
[1767213125824,11.91649208,124.67,124.62,18.16262027]
[1767213127228,8.43387181,124.67,124.62,18.16262027]
[1767213127408,11.91649208,124.67,124.62,18.16262027]
[1767213127723,11.91649208,124.67,124.63,3.48262027]
[1767213130821,4.19502088,124.66,124.62,15.3633908]
[1767213131222,0.71240061,124.66,124.62,15.3633908]
[1767213131423,4.19502088,124.66,124.62,15.3633908]
[1767213132019,4.19502088,124.66,124.62,18.84601107]
[1767213132327,0.71240061,124.66,124.62,18.84601107]
[1767213132712,8.73436986,124.66,124.62,18.84601107]
[1767213133204,3.68262027,124.68,124.63,4.18601107]
[1767213133416,0.71240061,124.67,124.63,4.18601107]
[1767213134132,8.22071439,124.68,124.64,4.18601107]
[1767213134525,8.933115,124.68,124.64,4.18601107]
[1767213136022,8.22071439,124.68,124.65,0.7033908]
[1767213136333,0.2,124.68,124.65,0.7033908]
[1767213136521,0.2,124.68,124.65,4.18601107]
[1767213136826,0.2,124.68,124.65,0.7033908]
[1767213138218,0.2,124.68,124.65,4.18601107]
[1767213139660,0.2,124.68,124.65,0.7033908]
[1767213140236,20.76103181,124.73,124.67,3.48262027]
[1767213140435,8.7350557,124.73,124.68,3.48262027]
[1767213140640,0.7177383,124.72,124.68,3.48262027]
[1767213141242,4.20035857,124.72,124.68,3.48262027]
[1767213142142,0.7177383,124.72,124.68,3.48262027]
[1767213142835,8.73595441,124.72,124.68,3.48262027]
[1767213143138,14.66,124.77,124.71,3.48262027]
[1767213143139,8.73467673,124.74,124.71,3.48262027]
[1767213143634,0.7177383,124.74,124.72,3.48262027]
[1767213143837,8.01624983,124.75,124.72,3.48262027]
[1767213144038,31.53895026,124.75,124.69,14.66]
[1767213144223,4.20035857,124.74,124.7,3.48262027]
[1767213144741,8.73451786,124.74,124.7,3.48262027]
[1767213145121,12.21713813,124.74,124.71,5.36958408]
[1767213145442,8.73451786,124.74,124.7,3.48262027]
[1767213145833,0.7177383,124.74,124.71,3.48262027]
[1767213146836,19.19107856,124.82,124.7,14.66]
[1767213146837,0.7177383,124.76,124.7,14.66]
[1767213147163,0.7177383,124.76,124.73,3.48262027]
[1767213147527,8.01523921,124.77,124.74,3.48262027]
[1767213147730,8.73215052,124.78,124.74,3.48262027]
[1767213148038,0.7177383,124.78,124.75,8.84282605]
[1767213148241,8.93085777,124.8,124.76,3.48262027]
[1767213148638,4.20035857,124.79,124.75,0.7081393]
[1767213148834,8.01410482,124.78,124.74,18.14262027]
[1767213149041,8.01410482,124.78,124.75,5.35829698]
[1767213149344,8.73184312,124.78,124.74,4.19075957]
[1767213150742,8.73184312,124.78,124.7,6.65816627]
[1767213150743,4.20035857,124.76,124.71,4.19075957]
[1767213150952,12.21574898,124.76,124.72,5.36038121]
[1767213151132,8.73312871,124.76,124.71,4.19075957]
[1767213151333,12.21574898,124.76,124.72,5.35989589]
[1767213151655,12.21574898,124.76,124.72,0.7081393]
[1767213151846,0.7177383,124.76,124.72,4.19075957]
[1767213152756,8.73315849,124.76,124.72,4.19075957]
[1767213153958,8.01542019,124.76,124.73,3.48262027]
[1767213154131,11.49756783,124.77,124.73,3.48262027]
[1767213154439,0.7177383,124.77,124.74,3.48262027]
[1767213155258,0.7177383,124.76,124.73,3.48262027]
[1767213155952,0.7177383,124.76,124.74,3.48262027]
[1767213156126,0.7177383,124.76,124.72,0.7081393]
[1767213156331,0.7177383,124.76,124.73,3.48262027]
[1767213157040,8.01433816,124.78,124.74,3.48262027]
[1767213157238,0.7177383,124.78,124.75,3.48262027]
[1767213157748,8.01410564,124.78,124.75,4.19075957]
[1767213157957,8.01410564,124.78,124.74,4.19075957]
[1767213158152,8.01410564,124.78,124.74,0.7081393]
[1767213158452,8.01410564,124.78,124.75,4.19075957]
[1767213158839,8.01410564,124.78,124.75,0.7081393]
[1767213159033,8.73128306,124.79,124.75,4.19075957]
[1767213159441,8.73128306,124.79,124.76,3.48262027]
[1767213159635,8.93074297,124.8,124.76,4.19075957]
[1767213160546,0.9177383,124.8,124.76,4.19075957]
[1767213160853,8.93058731,124.8,124.76,0.7081393]
[1767213161034,8.93058731,124.8,124.76,4.19075957]
[1767213161230,0.2,124.8,124.77,3.48262027]
[1767213161431,0.2,124.8,124.77,4.19075957]
[1767213161739,0.2,124.8,124.78,3.48262027]
[1767213162141,0.7177383,124.85,124.79,4.19075957]
[1767213162347,0.7177383,124.84,124.8,3.48262027]
[1767213163234,0.7177383,124.83,124.79,4.19075957]
[1767213164345,8.72867256,124.83,124.79,4.19075957]
[1767213164549,0.7177383,124.83,124.79,4.19075957]
[1767213164948,8.72868402,124.83,124.79,4.19075957]
[1767213165150,0.7177383,124.83,124.79,4.19075957]
[1767213165347,20.02337752,124.86,124.8,4.19075957]
[1767213165348,8.00991456,124.85,124.8,4.19075957]
[1767213165668,0.7177383,124.84,124.8,4.19075957]
[1767213166365,8.72822258,124.84,124.8,4.19075957]
[1767213167650,8.72822258,124.84,124.8,0.7081393]
[1767213167843,8.72822258,124.84,124.8,4.19075957]
[1767213168044,0.7177383,124.83,124.79,3.48262027]
[1767213168250,8.72910023,124.83,124.79,3.48262027]
[1767213168747,8.72910023,124.83,124.78,4.19075957]
[1767213169542,0.7177383,124.83,124.79,3.48262027]
[1767213169741,8.72870017,124.83,124.79,3.48262027]
[1767213169947,0.7177383,124.83,124.79,3.48262027]
[1767213170141,0.7177383,124.83,124.78,3.48262027]
[1767213170142,0.68903498,124.82,124.78,3.48262027]
[1767213170340,0.68903498,124.82,124.78,4.17991669]
[1767213170771,0.68903498,124.81,124.77,3.48262027]
[1767213170944,0.68903498,124.81,124.77,4.17991669]
[1767213171353,11.49450731,124.82,124.77,3.48262027]
[1767213171553,12.18354229,124.82,124.77,4.17991669]
[1767213172358,0.68903498,124.81,124.77,0.69729642]
[1767213172667,0.68903498,124.81,124.77,4.17991669]
[1767213173175,0.68903498,124.81,124.75,14.66]
[1767213173176,4.17165525,124.8,124.75,0.69729642]
[1767213173463,4.17165525,124.8,124.75,4.17991669]
[1767213173663,4.17165525,124.79,124.75,0.69729642]
[1767213173863,4.17165525,124.78,124.73,4.17991669]
[1767213174267,28.04270699,124.81,124.73,0.69729642]
[1767213174268,4.17165525,124.77,124.73,0.69729642]
[1767213174474,0.68903498,124.77,124.73,0.69729642]
[1767213174647,0.68903498,124.77,124.73,4.17991669]
[1767213176066,12.18620813,124.78,124.73,0.69729642]
[1767213176251,0.68903498,124.77,124.73,0.69729642]
[1767213176453,4.17165525,124.77,124.73,0.69729642]
[1767213177781,12.18662051,124.77,124.73,0.69729642]
[1767213178649,0.68903498,124.77,124.74,3.48262027]
[1767213179464,12.18522409,124.79,124.74,0.69729642]
[1767213179657,0.68903498,124.78,124.74,0.69729642]
[1767213180678,0.68903498,124.78,124.74,4.17254277]
[1767213181378,0.68903498,124.78,124.74,6.12694704]
[1767213182147,0.68903498,124.78,124.75,5.42965062]
[1767213183154,0.68903498,124.78,124.74,0.69729642]
[1767213183370,0.68903498,124.78,124.75,5.36719038]
[1767213183573,0.68903498,124.78,124.74,0.69729642]
[1767213183879,0.68903498,124.78,124.75,5.36718959]
[1767213184081,0.68903498,124.78,124.74,0.69729642]
[1767213185282,0.68903498,124.78,124.75,5.37648034]
[1767213185458,0.68903498,124.78,124.74,0.69729642]
[1767213185795,0.68903498,124.78,124.75,5.37670147]
[1767213185955,0.68903498,124.78,124.74,0.69729642]
[1767213186151,0.68903498,124.78,124.73,14.66]
[1767213186152,6.1186856,124.77,124.72,6.12694704]
[1767213186359,6.1186856,124.77,124.73,0.69729642]
[1767213187263,0.68903498,124.77,124.73,0.69729642]
[1767213187469,5.42965062,124.77,124.72,0.69729642]
[1767213187668,6.1186856,124.76,124.72,0.69729642]
[1767213188266,6.1186856,124.76,124.71,5.42965062]
[1767213188267,5.42965062,124.74,124.7,0.69729642]
[1767213188578,5.42965062,124.74,124.63,12.62212287]
[1767213188579,5.42965062,124.71,124.67,0.69729642]
[1767213188782,5.42965062,124.7,124.67,0.69729642]
[1767213189081,5.42965062,124.7,124.63,21.31816627]
[1767213189082,0.68903498,124.71,124.63,6.65816627]
[1767213189262,5.42965062,124.69,124.64,0.69729642]
[1767213189459,5.51529,124.75,124.63,14.66]
[1767213189691,5.42965062,124.71,124.66,6.12694704]
[1767213189985,5.42965062,124.71,124.66,0.69729642]
[1767213191481,13.44830759,124.71,124.66,0.69729642]
[1767213191867,14.13734257,124.71,124.66,0.69729642]
[1767213193292,6.1186856,124.69,124.64,6.12694704]
[1767213193487,6.1186856,124.69,124.65,0.69729642]
[1767213193880,5.42965062,124.69,124.65,0.69729642]
[1767213194077,5.42965062,124.7,124.66,0.69729642]
[1767213194484,6.1186856,124.71,124.66,6.12694704]
[1767213194671,6.1186856,124.71,124.66,0.69729642]
[1767213195268,5.42965062,124.7,124.66,0.69729642]
[1767213195791,6.1186856,124.7,124.66,0.69729642]
[1767213195992,14.13803914,124.7,124.66,0.69729642]
[1767213196994,6.1186856,124.7,124.66,0.69729642]
[1767213197291,5.42965062,124.69,124.66,0.69729642]
[1767213197678,5.42965062,124.68,124.64,15.35729642]
[1767213197885,0.68903498,124.69,124.64,6.12694704]
[1767213198079,0.68903498,124.69,124.65,0.69729642]
[1767213198080,6.1186856,124.69,124.65,0.69729642]
[1767213198484,14.13858751,124.69,124.65,0.69729642]
[1767213198686,5.42965062,124.68,124.65,0.69729642]
[1767213198881,0.68903498,124.69,124.65,0.69729642]
[1767213199070,6.1186856,124.69,124.65,0.69729642]
[1767213199268,5.42965062,124.68,124.65,0.69729642]
[1767213199492,8.70899231,124.69,124.65,0.69729642]
[1767213199737,5.42965062,124.68,124.65,0.69729642]
[1767213200482,5.42965062,124.67,124.65,0.69729642]
[1767213200684,5.42965062,124.68,124.65,0.69729642]
[1767213202302,5.42965062,124.67,124.63,0.68041428]
[1767213206006,6.10928448,124.67,124.63,0.68041428]
[1767213206408,6.10928448,124.67,124.6,8.35013837]
[1767213206409,13.45089015,124.67,124.6,8.35013837]
[1767213206581,5.42965062,124.64,124.61,0.68041428]
[1767213206997,8.70202807,124.66,124.61,0.68041428]
[1767213207226,5.42965062,124.64,124.61,0.68041428]
[1767213207410,5.42965062,124.65,124.61,0.68041428]
[1767213207908,5.42965062,124.64,124.61,0.68041428]
[1767213208602,6.10928448,124.65,124.61,0.68041428]
[1767213208785,5.42965062,124.64,124.61,0.68041428]
[1767213210391,6.10928448,124.65,124.61,0.68041428]
[1767213210603,5.42965062,124.64,124.61,0.68041428]
[1767213210812,6.10928448,124.65,124.61,0.68041428]
[1767213212011,5.42965062,124.64,124.61,0.68041428]
[1767213212200,5.42965062,124.63,124.59,0.68041428]
[1767213212407,5.42965062,124.62,124.59,0.68041428]
[1767213212915,5.42965062,124.61,124.59,0.68041428]
[1767213213231,0.67963386,124.63,124.59,0.68041428]
[1767213213394,5.42965062,124.62,124.59,0.68041428]
[1767213215603,5.42965062,124.61,124.59,0.68041428]
[1767213216724,8.35013837,124.6,124.55,0.1]
[1767213216906,8.02354572,124.64,124.55,0.1]
[1767213216907,6.10928448,124.58,124.55,0.1]
[1767213217609,5.42965062,124.58,124.55,0.78041428]
[1767213219421,5.42965062,124.57,124.55,0.78041428]
[1767213220307,5.42965062,124.58,124.55,0.78041428]
[1767213220509,0.67963386,124.59,124.55,0.78041428]
[1767213220709,5.42965062,124.58,124.55,0.78041428]
[1767213225032,5.42965062,124.58,124.52,0.1]
[1767213225033,0.60241657,124.55,124.52,0.1]
[1767213225220,5.42965062,124.56,124.48,0.78041428]
[1767213225221,6.03206719,124.53,124.48,0.78041428]
[1767213225411,0.60241657,124.53,124.48,0.78041428]
[1767213225721,5.42965062,124.51,124.48,0.78041428]
[1767213225924,5.42965062,124.49,124.48,0.78041428]
[1767213226125,5.42965062,124.49,124.45,0.68041428]
[1767213226331,5.42965062,124.47,124.45,0.68041428]
[1767213226830,5.42965062,124.47,124.36,24.29951612]
[1767213226831,5.42965062,124.46,124.38,0.68041428]
[1767213227003,0.50241657,124.47,124.38,0.68041428]
[1767213227004,5.42965062,124.44,124.4,0.68041428]
[1767213227204,5.42965062,124.45,124.4,0.68041428]
[1767213227530,5.42965062,124.45,124.41,0.68041428]
[1767213227927,0.50241657,124.41,124.34,0.68041428]
[1767213228113,5.42965062,124.39,124.34,6.1100649]
[1767213228312,8.35013837,124.43,124.31,14.68]
[1767213228313,0.50241657,124.42,124.31,14.68]
[1767213228519,0.50241657,124.42,124.38,0.68041428]
[1767213228520,5.42965062,124.42,124.38,0.68041428]
[1767213230621,34.74516108,124.47,124.33,14.68]
[1767213230622,5.42965062,124.39,124.33,14.68]
[1767213230947,5.42965062,124.39,124.29,8.0455055]
[1767213231121,5.42965062,124.38,124.33,5.42965062]
[1767213231320,5.42965062,124.39,124.33,5.42965062]
[1767213231719,5.42965062,124.38,124.33,5.42965062]
[1767213232634,5.42965062,124.38,124.34,0.67733437]
[1767213232845,5.42965062,124.36,124.31,0.67733437]
[1767213233133,5.42965062,124.39,124.34,5.42965062]
[1767213233343,5.42965062,124.4,124.35,0.67733437]
[1767213233630,5.42965062,124.39,124.35,0.67733437]
[1767213235213,5.42965062,124.36,124.31,14.68]
[1767213235431,0.71118021,124.36,124.28,0.1]
[1767213235736,5.42965062,124.31,124.28,0.1]
[1767213235922,5.42965062,124.31,124.28,0.77733437]
[1767213236811,8.35013837,124.36,124.21,0.1]
[1767213236812,5.42965062,124.29,124.21,0.1]
[1767213237040,40.94494062,124.32,124.22,6.10698499]
[1767213237041,5.42965062,124.27,124.22,6.10698499]
[1767213237273,5.42965062,124.26,124.23,0.67733437]
[1767213237418,5.42965062,124.27,124.23,0.67733437]
[1767213237831,5.42965062,124.27,124.15,4.20507751]
[1767213237832,0.71118021,124.23,124.15,4.20507751]
[1767213238012,10.85930124,124.24,124.14,0.1]
[1767213238013,9.06131858,124.21,124.14,0.77733437]
[1767213238214,9.06131858,124.21,124.16,0.67733437]
[1767213238215,5.42965062,124.21,124.16,0.67733437]
[1767213238413,5.42965062,124.21,124.17,0.67733437]
[1767213238620,5.48043791,124.21,124.17,0.67733437]
[1767213238906,0.71118021,124.23,124.17,0.67733437]
[1767213238907,5.48043791,124.22,124.17,0.67733437]
[1767213239112,14.2481411,124.21,124.17,0.67733437]
[1767213239534,14.2481411,124.24,124.19,14.2481411]
[1767213239850,14.2481411,124.27,124.23,0.67733437]
[1767213240131,23.00520332,124.29,124.23,0.67733437]
[1767213240435,14.2481411,124.29,124.24,0.67733437]
[1767213240632,14.2481411,124.29,124.25,14.2481411]
[1767213241040,14.2481411,124.28,124.23,28.9481411]
[1767213241241,22.29513554,124.27,124.23,14.7]
[1767213242120,14.2481411,124.27,124.23,14.7]
[1767213242322,14.2481411,124.27,124.23,28.9481411]
[1767213242641,14.2481411,124.27,124.22,0.67733437]
[1767213242642,14.23655897,124.24,124.19,14.23655897]
[1767213242815,14.23655897,124.24,124.19,14.7]
[1767213243018,14.23655897,124.24,124.19,29.61389334]
[1767213243227,8.76564555,124.24,124.19,24.14297992]
[1767213244152,20.11840705,124.27,124.21,9.44297992]
[1767213244153,8.04764204,124.26,124.21,9.44297992]
[1767213244362,16.81328759,124.26,124.21,9.44297992]
[1767213244524,8.04764204,124.26,124.22,8.76564555]
[1767213244734,17.82696413,124.27,124.19,14.7]
[1767213244735,17.82696413,124.24,124.19,23.46564555]
[1767213244922,8.76564555,124.23,124.19,14.7]
[1767213245246,8.76564555,124.23,124.14,0.1]
[1767213245247,0.71118021,124.19,124.14,9.54297992]
[1767213245428,8.35013837,124.22,124.17,8.76564555]
[1767213245429,9.06131858,124.22,124.17,8.76564555]
[1767213245630,16.40058169,124.22,124.18,8.76564555]
[1767213245834,25.16622724,124.22,124.17,9.44297992]
[1767213246345,16.40058169,124.22,124.18,8.76564555]
[1767213246528,17.1117619,124.22,124.18,8.76564555]
[1767213246930,8.04960299,124.23,124.19,8.76564555]
[1767213248723,8.04960299,124.23,124.18,0.67733437]
[1767213249050,8.35013837,124.2,124.17,23.46564555]
[1767213249550,8.35013837,124.2,124.17,14.7]
[1767213249758,17.11578392,124.2,124.15,9.44297992]
[1767213250134,9.47682576,124.19,124.15,8.76564555]
[1767213250436,8.35013837,124.13,124.08,0.1]
[1767213250756,8.35013837,124.2,124.13,0.67733437]
[1767213250937,8.35013837,124.2,124.17,9.44297992]
[1767213251250,16.4016798,124.2,124.17,0.67733437]
[1767213251630,25.16732535,124.2,124.15,8.76564555]
[1767213251832,8.76564555,124.19,124.15,8.76564555]
[1767213252246,25.16732535,124.2,124.15,8.76564555]
[1767213252537,16.4016798,124.2,124.16,8.76564555]
[1767213252854,25.16732535,124.2,124.16,8.76564555]
[1767213253249,25.16732535,124.2,124.15,9.44297992]
[1767213253446,8.76564555,124.18,124.13,8.76564555]
[1767213253652,8.76564555,124.18,124.12,15.39733437]
[1767213253653,8.35013837,124.16,124.12,23.48564555]
[1767213253845,17.11578392,124.16,124.12,23.48564555]
[1767213254150,17.11578392,124.14,124.12,14.72]
[1767213254356,8.76564555,124.13,124.09,0.1]
[1767213254957,8.76564555,124.13,124.09,0.77733437]
[1767213255157,8.05614396,124.13,124.09,0.77733437]
[1767213255354,8.76564555,124.15,124.12,0.67733437]
[1767213256151,8.76564555,124.14,124.12,0.67733437]
[1767213256333,8.76564555,124.15,124.12,0.67733437]
[1767213256535,8.76564555,124.15,124.11,0.67733437]
[1767213257355,8.35013837,124.16,124.11,0.67733437]
[1767213257356,8.35013837,124.16,124.12,0.67733437]
[1767213257658,8.76564555,124.15,124.12,0.67733437]
[1767213258359,8.04958544,124.23,124.15,0.67733437]
[1767213258551,8.76564555,124.21,124.16,8.76564555]
[1767213258857,36.52368742,124.23,124.17,0.67733437]
[1767213259036,8.76564555,124.21,124.17,9.44297992]
[1767213259233,28.17354905,124.23,124.18,9.44297992]
[1767213259234,8.76564555,124.22,124.18,9.44297992]
[1767213259452,8.76564555,124.22,124.19,0.67733437]
[1767213261161,0.70193696,124.26,124.2,0.71237025]
[1767213261361,8.76564555,124.24,124.2,0.71237025]
[1767213261567,8.76564555,124.23,124.2,0.71237025]
[1767213262345,8.76564555,124.24,124.2,0.71237025]
[1767213263266,0.70193696,124.26,124.2,0.71237025]
[1767213263267,16.8154513,124.23,124.2,0.71237025]
[1767213264961,20.12072434,124.25,124.2,0.71237025]